[Event "*** SCC Grand Prix: Titled Tuesday Blitz"]
[Site "Chess.com"]
[Date "2020.10.13"]
[Round "8"]
[White "Beltsychess"]
[Black "VerdeNotte"]
[Result "1-0"]
[WhiteElo "2652"]
[BlackElo "2817"]
[TimeControl "180+1"]
[EndTime "11:32:49 PDT"]
[Termination "Beltsychess won by resignation"]

1. d4 {[%clk 0:03:00.9]} 1... d5 {[%clk 0:02:58.6]} 2. Nf3 {[%clk 0:02:59.9]}
2... c6 {[%clk 0:02:57.4]} 3. Bg5 {[%clk 0:02:59]} 3... h6 {[%clk 0:02:56.9]} 4.
Bh4 {[%clk 0:02:58.1]} 4... Qb6 {[%clk 0:02:56.9]} 5. b3 {[%clk 0:02:57.6]} 5...
Bf5 {[%clk 0:02:54.1]} 6. e3 {[%clk 0:02:57.3]} 6... e6 {[%clk 0:02:53.9]} 7.
Bd3 {[%clk 0:02:57.1]} 7... Bxd3 {[%clk 0:02:50.4]} 8. Qxd3 {[%clk 0:02:56.7]}
8... Qa6 {[%clk 0:02:50.9]} 9. c4 {[%clk 0:02:41.9]} 9... Bb4+ {[%clk 0:02:36]}
10. Nbd2 {[%clk 0:02:41.1]} 10... Nd7 {[%clk 0:02:36]} 11. O-O {[%clk
0:02:38.5]} 11... Ngf6 {[%clk 0:02:35.7]} 12. a3 {[%clk 0:02:32.5]} 12... Be7
{[%clk 0:02:30.8]} 13. Rfd1 {[%clk 0:02:24.4]} 13... O-O {[%clk 0:02:24.8]} 14.
Ne5 {[%clk 0:02:21.5]} 14... Rfe8 {[%clk 0:02:22.1]} 15. Ndf3 {[%clk 0:01:42.4]}
15... Rad8 {[%clk 0:02:16.4]} 16. c5 {[%clk 0:01:32.3]} 16... Qxd3 {[%clk
0:02:14.8]} 17. Rxd3 {[%clk 0:01:31.9]} 17... g5 {[%clk 0:02:06.6]} 18. Bg3
{[%clk 0:01:28.7]} 18... Nh5 {[%clk 0:02:01.3]} 19. Nxd7 {[%clk 0:01:27.2]}
19... Rxd7 {[%clk 0:02:02.2]} 20. b4 {[%clk 0:01:15.7]} 20... Bd8 {[%clk
0:01:51.5]} 21. Bd6 {[%clk 0:01:11.5]} 21... f6 {[%clk 0:01:49.8]} 22. Re1
{[%clk 0:01:03.5]} 22... Ng7 {[%clk 0:01:45.7]} 23. h3 {[%clk 0:01:01.5]} 23...
Nf5 {[%clk 0:01:43.5]} 24. Bh2 {[%clk 0:01:00.2]} 24... Bc7 {[%clk 0:01:42.7]}
25. Bxc7 {[%clk 0:00:55.9]} 25... Rxc7 {[%clk 0:01:43.6]} 26. g4 {[%clk
0:00:55.3]} 26... Ne7 {[%clk 0:01:42.9]} 27. a4 {[%clk 0:00:51]} 27... Ng6
{[%clk 0:01:38.1]} 28. Rb3 {[%clk 0:00:47.8]} 28... e5 {[%clk 0:01:37.8]} 29.
Reb1 {[%clk 0:00:45.3]} 29... Rf7 {[%clk 0:01:32.1]} 30. b5 {[%clk 0:00:42.4]}
30... f5 {[%clk 0:01:23.2]} 31. bxc6 {[%clk 0:00:42.3]} 31... bxc6 {[%clk
0:01:22.3]} 32. Rb7 {[%clk 0:00:41.3]} 32... fxg4 {[%clk 0:01:17.5]} 33. Rxf7
{[%clk 0:00:40]} 33... Kxf7 {[%clk 0:01:18.4]} 34. hxg4 {[%clk 0:00:40.2]} 34...
e4 {[%clk 0:01:13.1]} 35. Nd2 {[%clk 0:00:35.9]} 35... Nf8 {[%clk 0:01:13]} 36.
Rb7+ {[%clk 0:00:33.2]} 36... Re7 {[%clk 0:01:13.3]} 37. Rb8 {[%clk 0:00:32.8]}
37... Rc7 {[%clk 0:01:10.2]} 38. Kg2 {[%clk 0:00:27.3]} 38... Nd7 {[%clk
0:01:10.2]} 39. Rh8 {[%clk 0:00:26.5]} 39... Nf6 {[%clk 0:01:02.6]} 40. Nb3
{[%clk 0:00:26]} 40... Nxg4 {[%clk 0:00:59.4]} 41. Rh7+ {[%clk 0:00:25.4]} 1-0

[Event "*** SCC Grand Prix: Titled Tuesday Blitz"]
[Site "Chess.com"]
[Date "2020.10.13"]
[Round "8"]
[White "Sesleria"]
[Black "rugbyclub"]
[Result "0-1"]
[WhiteElo "2025"]
[BlackElo "2203"]
[TimeControl "180+1"]
[EndTime "11:32:51 PDT"]
[Termination "rugbyclub won by checkmate"]

1. d4 {[%clk 0:02:59.7]} 1... Nf6 {[%clk 0:02:58.5]} 2. c4 {[%clk 0:02:59.7]}
2... e6 {[%clk 0:02:58.8]} 3. Nc3 {[%clk 0:02:59.7]} 3... Bb4 {[%clk 0:02:59.3]}
4. Qc2 {[%clk 0:02:59.8]} 4... d5 {[%clk 0:02:56.7]} 5. a3 {[%clk 0:02:59.2]}
5... Bxc3+ {[%clk 0:02:54.3]} 6. Qxc3 {[%clk 0:02:59.3]} 6... c5 {[%clk
0:02:54.5]} 7. dxc5 {[%clk 0:02:57.6]} 7... d4 {[%clk 0:02:54.5]} 8. Qg3 {[%clk
0:02:56.8]} 8... O-O {[%clk 0:02:50.4]} 9. Bh6 {[%clk 0:02:55.4]} 9... Ne8
{[%clk 0:02:42.7]} 10. O-O-O {[%clk 0:02:50.3]} 10... Nc6 {[%clk 0:02:30.7]} 11.
Nf3 {[%clk 0:02:42.4]} 11... a5 {[%clk 0:02:22.4]} 12. e3 {[%clk 0:02:38.7]}
12... e5 {[%clk 0:02:15.1]} 13. exd4 {[%clk 0:02:12]} 13... exd4 {[%clk
0:02:04.9]} 14. Bg5 {[%clk 0:02:03.3]} 14... f6 {[%clk 0:02:00.5]} 15. Bf4
{[%clk 0:02:02.4]} 15... a4 {[%clk 0:01:59.1]} 16. Bd3 {[%clk 0:01:52.6]} 16...
Qa5 {[%clk 0:01:57.8]} 17. Qh4 {[%clk 0:01:49.2]} 17... g6 {[%clk 0:01:52]} 18.
Bd6 {[%clk 0:01:42.3]} 18... Rf7 {[%clk 0:01:46.7]} 19. Rhe1 {[%clk 0:01:39.5]}
19... Bd7 {[%clk 0:01:41.2]} 20. Nxd4 {[%clk 0:01:23.5]} 20... Nxd6 {[%clk
0:01:28.8]} 21. cxd6 {[%clk 0:01:19.1]} 21... Ne5 {[%clk 0:01:28.2]} 22. Bf1
{[%clk 0:00:40.3]} 22... Rc8 {[%clk 0:01:24.6]} 23. Kb1 {[%clk 0:00:25.9]} 23...
Nxc4 {[%clk 0:01:20.9]} 24. Bxc4 {[%clk 0:00:21.7]} 24... Rxc4 {[%clk
0:01:19.2]} 25. Re7 {[%clk 0:00:21.2]} 25... Bf5+ {[%clk 0:00:53.4]} 26. Ka1
{[%clk 0:00:12.5]} 26... Qc5 {[%clk 0:00:47.4]} 27. Rxf7 {[%clk 0:00:08]} 27...
Rc1+ {[%clk 0:00:46.2]} 28. Rxc1 {[%clk 0:00:05]} 28... Qxc1+ {[%clk 0:00:45.8]}
29. Ka2 {[%clk 0:00:05.4]} 29... Qb1# {[%clk 0:00:41.4]} 0-1

[Event "*** SCC Grand Prix: Titled Tuesday Blitz"]
[Site "Chess.com"]
[Date "2020.10.13"]
[Round "8"]
[White "Legendinunknown"]
[Black "Zkid"]
[Result "0-1"]
[WhiteElo "2609"]
[BlackElo "2818"]
[TimeControl "180+1"]
[EndTime "11:32:53 PDT"]
[Termination "Zkid won by resignation"]

1. d4 {[%clk 0:03:00.9]} 1... d5 {[%clk 0:02:59.1]} 2. c4 {[%clk 0:02:59.3]}
2... dxc4 {[%clk 0:03:00]} 3. e4 {[%clk 0:02:57.8]} 3... Nf6 {[%clk 0:03:00.1]}
4. e5 {[%clk 0:02:57.8]} 4... Nd5 {[%clk 0:03:00.7]} 5. Bxc4 {[%clk 0:02:57.9]}
5... Nc6 {[%clk 0:03:01.4]} 6. Ne2 {[%clk 0:02:57.5]} 6... Bf5 {[%clk
0:03:00.6]} 7. Nbc3 {[%clk 0:02:53.1]} 7... Nb6 {[%clk 0:02:57.6]} 8. Bb3 {[%clk
0:02:53.3]} 8... e6 {[%clk 0:02:57.4]} 9. O-O {[%clk 0:02:51.3]} 9... Qd7 {[%clk
0:02:57.2]} 10. Be3 {[%clk 0:02:51]} 10... O-O-O {[%clk 0:02:57]} 11. Rc1 {[%clk
0:02:48.8]} 11... Kb8 {[%clk 0:02:56.8]} 12. Na4 {[%clk 0:02:39.5]} 12... Nb4
{[%clk 0:02:41.3]} 13. Nxb6 {[%clk 0:02:35.3]} 13... axb6 {[%clk 0:02:37.8]} 14.
Nc3 {[%clk 0:02:29.1]} 14... Be7 {[%clk 0:02:31.1]} 15. Qd2 {[%clk 0:02:05.4]}
15... f6 {[%clk 0:02:28.1]} 16. f4 {[%clk 0:01:45.2]} 16... fxe5 {[%clk
0:02:23.9]} 17. fxe5 {[%clk 0:01:45]} 17... Nc6 {[%clk 0:02:24.4]} 18. Ba4
{[%clk 0:01:34.4]} 18... Qc8 {[%clk 0:02:22.9]} 19. Bxc6 {[%clk 0:01:15.8]}
19... bxc6 {[%clk 0:02:22.2]} 20. Qe2 {[%clk 0:01:11.9]} 20... c5 {[%clk
0:01:52]} 21. dxc5 {[%clk 0:00:53.7]} 21... Bd3 {[%clk 0:01:50.7]} 22. Qg4
{[%clk 0:00:53]} 22... Bxf1 {[%clk 0:01:48.2]} 23. Rxf1 {[%clk 0:00:53.9]} 23...
Rd3 {[%clk 0:01:40.2]} 24. Bf2 {[%clk 0:00:47]} 24... Bxc5 {[%clk 0:01:37.5]}
25. Bxc5 {[%clk 0:00:45.4]} 25... bxc5 {[%clk 0:01:38.4]} 26. Qc4 {[%clk
0:00:41.6]} 26... Rhd8 {[%clk 0:01:37.8]} 27. Qxc5 {[%clk 0:00:39.5]} 27... Qb7
{[%clk 0:01:37.9]} 28. Rf4 {[%clk 0:00:30.4]} 28... Kc8 {[%clk 0:01:05.2]} 29.
Rb4 {[%clk 0:00:20.3]} 29... Qa8 {[%clk 0:01:03.7]} 30. Ra4 {[%clk 0:00:18.1]}
30... Rd1+ {[%clk 0:01:03.5]} 31. Kf2 {[%clk 0:00:18.1]} 31... R1d2+ {[%clk
0:01:02.4]} 32. Ke3 {[%clk 0:00:18]} 32... Qxg2 {[%clk 0:00:54.6]} 33. Qc4
{[%clk 0:00:09.2]} 33... Qf2+ {[%clk 0:00:48.8]} 34. Ke4 {[%clk 0:00:09.3]}
34... Qf5+ {[%clk 0:00:47.6]} 35. Ke3 {[%clk 0:00:09.3]} 35... R8d3+ {[%clk
0:00:48.5]} 0-1

[Event "*** SCC Grand Prix: Titled Tuesday Blitz"]
[Site "Chess.com"]
[Date "2020.10.13"]
[Round "8"]
[White "penguingm1"]
[Black "Beca95"]
[Result "0-1"]
[WhiteElo "2849"]
[BlackElo "2927"]
[TimeControl "180+1"]
[EndTime "11:32:54 PDT"]
[Termination "Beca95 won by resignation"]

1. d4 {[%clk 0:03:00.9]} 1... g6 {[%clk 0:03:00.1]} 2. c4 {[%clk 0:03:01]} 2...
Bg7 {[%clk 0:03:00.5]} 3. Nc3 {[%clk 0:03:01.6]} 3... d6 {[%clk 0:03:01]} 4. e4
{[%clk 0:03:02.3]} 4... e5 {[%clk 0:03:01.1]} 5. d5 {[%clk 0:03:02.5]} 5... a5
{[%clk 0:03:00.8]} 6. Nge2 {[%clk 0:03:03.1]} 6... h5 {[%clk 0:03:00.7]} 7. Be3
{[%clk 0:02:57.8]} 7... Bh6 {[%clk 0:03:00.8]} 8. Bxh6 {[%clk 0:02:52.2]} 8...
Nxh6 {[%clk 0:03:01.7]} 9. Qd2 {[%clk 0:02:52.8]} 9... Na6 {[%clk 0:03:00.7]}
10. Nc1 {[%clk 0:02:41.8]} 10... Nc5 {[%clk 0:03:00]} 11. Nd3 {[%clk 0:02:42.2]}
11... b6 {[%clk 0:03:00.3]} 12. Nxc5 {[%clk 0:02:32.2]} 12... bxc5 {[%clk
0:03:01.2]} 13. Bd3 {[%clk 0:02:29.3]} 13... Bd7 {[%clk 0:02:59.9]} 14. O-O
{[%clk 0:02:29.2]} 14... g5 {[%clk 0:03:00.2]} 15. Nd1 {[%clk 0:02:11.5]} 15...
Kf8 {[%clk 0:02:51.3]} 16. Ne3 {[%clk 0:02:11.5]} 16... Kg7 {[%clk 0:02:51.6]}
17. b3 {[%clk 0:02:04.9]} 17... Qf6 {[%clk 0:02:50.9]} 18. Rab1 {[%clk
0:01:54.7]} 18... h4 {[%clk 0:02:51]} 19. Qc2 {[%clk 0:01:52.2]} 19... g4 {[%clk
0:02:43.4]} 20. f3 {[%clk 0:01:24.8]} 20... g3 {[%clk 0:02:36.6]} 21. h3 {[%clk
0:01:24.9]} 21... Qf4 {[%clk 0:02:34.5]} 22. Qd2 {[%clk 0:01:21]} 22... Ng8
{[%clk 0:02:32.9]} 23. Rfe1 {[%clk 0:01:20.5]} 23... Ne7 {[%clk 0:02:32.4]} 24.
Rb2 {[%clk 0:01:17.5]} 24... Ng6 {[%clk 0:02:31.9]} 25. Reb1 {[%clk 0:00:32.9]}
25... Rhb8 {[%clk 0:02:30]} 26. Nf1 {[%clk 0:00:16]} 26... Qxd2 {[%clk
0:02:27.9]} 27. Nxd2 {[%clk 0:00:16.9]} 27... Nf4 {[%clk 0:02:27.3]} 28. Bf1
{[%clk 0:00:16.4]} 28... f5 {[%clk 0:02:25.6]} 29. Re1 {[%clk 0:00:15.4]} 29...
a4 {[%clk 0:02:24.1]} 30. Rc1 {[%clk 0:00:11.9]} 30... axb3 {[%clk 0:02:23.9]}
31. axb3 {[%clk 0:00:12.8]} 31... Ra3 {[%clk 0:02:22.5]} 32. Rcb1 {[%clk
0:00:10.9]} 32... Kf6 {[%clk 0:02:19]} 33. Re1 {[%clk 0:00:10.7]} 33... Ke7
{[%clk 0:02:14.6]} 34. Reb1 {[%clk 0:00:10.8]} 34... Kf6 {[%clk 0:02:10.1]} 35.
Re1 {[%clk 0:00:11.1]} 35... Be8 {[%clk 0:02:10.2]} 36. Reb1 {[%clk 0:00:11]}
36... Bg6 {[%clk 0:02:07.9]} 37. Re1 {[%clk 0:00:11.2]} 37... fxe4 {[%clk
0:02:06.9]} 38. fxe4 {[%clk 0:00:12.1]} 38... Bh5 {[%clk 0:02:06.6]} 39. Kh1
{[%clk 0:00:12.1]} 39... Rba8 {[%clk 0:02:06.2]} 40. Kg1 {[%clk 0:00:12.4]}
40... Ra1 {[%clk 0:02:05.6]} 41. Reb1 {[%clk 0:00:11.1]} 41... Rxb1 {[%clk
0:02:05.3]} 42. Nxb1 {[%clk 0:00:12]} 42... Ra1 {[%clk 0:02:02.6]} 43. Kh1
{[%clk 0:00:03.8]} 43... Be2 {[%clk 0:01:57.3]} 44. Kg1 {[%clk 0:00:04.1]} 44...
Bd3 {[%clk 0:01:54.2]} 45. Nd2 {[%clk 0:00:04]} 45... Ne2+ {[%clk 0:01:44.1]}
46. Kh1 {[%clk 0:00:04.3]} 46... Nc3 {[%clk 0:01:35.6]} 47. Kg1 {[%clk
0:00:04.2]} 47... Nd1 {[%clk 0:01:31.8]} 48. Bxd3 {[%clk 0:00:01.5]} 48... Nxb2+
{[%clk 0:01:30.5]} 49. Bb1 {[%clk 0:00:02.4]} 49... Nd1 {[%clk 0:01:28]} 50. Kf1
{[%clk 0:00:02.6]} 50... Nc3 {[%clk 0:01:27.5]} 0-1

[Event "*** SCC Grand Prix: Titled Tuesday Blitz"]
[Site "Chess.com"]
[Date "2020.10.13"]
[Round "8"]
[White "BJthechessgod"]
[Black "canary2016"]
[Result "1-0"]
[WhiteElo "2252"]
[BlackElo "1955"]
[TimeControl "180+1"]
[EndTime "11:33:00 PDT"]
[Termination "BJthechessgod won on time"]

1. e4 {[%clk 0:03:00.9]} 1... e5 {[%clk 0:02:58.7]} 2. Nf3 {[%clk 0:02:55.3]}
2... Nf6 {[%clk 0:02:58.4]} 3. Nc3 {[%clk 0:02:52.1]} 3... Bb4 {[%clk
0:02:57.1]} 4. d3 {[%clk 0:02:49.6]} 4... O-O {[%clk 0:02:52]} 5. Bd2 {[%clk
0:02:40.6]} 5... d6 {[%clk 0:02:48.8]} 6. Be2 {[%clk 0:02:37.9]} 6... Nc6 {[%clk
0:02:47.3]} 7. O-O {[%clk 0:02:36.4]} 7... Bg4 {[%clk 0:02:46.3]} 8. Nd5 {[%clk
0:02:36.3]} 8... Bxd2 {[%clk 0:02:40.3]} 9. Qxd2 {[%clk 0:02:34.1]} 9... Be6
{[%clk 0:02:35.4]} 10. c4 {[%clk 0:02:25]} 10... Ne7 {[%clk 0:02:28.7]} 11.
Nxf6+ {[%clk 0:02:19]} 11... gxf6 {[%clk 0:02:27.7]} 12. Qh6 {[%clk 0:02:19.5]}
12... Ng6 {[%clk 0:02:18.9]} 13. h4 {[%clk 0:02:12.6]} 13... Nf4 {[%clk
0:02:08.2]} 14. Rae1 {[%clk 0:02:00.5]} 14... Re8 {[%clk 0:01:53.2]} 15. g3
{[%clk 0:01:48.4]} 15... Nxe2+ {[%clk 0:01:31.1]} 16. Rxe2 {[%clk 0:01:49.3]}
16... Bg4 {[%clk 0:01:25.9]} 17. Kg2 {[%clk 0:01:42.6]} 17... Re6 {[%clk
0:01:13.1]} 18. Re3 {[%clk 0:01:39.9]} 18... f5 {[%clk 0:01:01.3]} 19. Qg5+
{[%clk 0:01:26.7]} 19... Qxg5 {[%clk 0:00:43.9]} 20. Nxg5 {[%clk 0:01:27.6]}
20... Rg6 {[%clk 0:00:40.9]} 21. f3 {[%clk 0:01:19.3]} 21... Bh5 {[%clk
0:00:25.2]} 22. exf5 {[%clk 0:01:15.5]} 22... Rg7 {[%clk 0:00:20.4]} 23. g4
{[%clk 0:01:15.4]} 23... h6 {[%clk 0:00:15.4]} 24. Ne4 {[%clk 0:01:14.9]} 24...
Bxg4 {[%clk 0:00:13.9]} 25. Nf6+ {[%clk 0:01:15.3]} 25... Kh8 {[%clk 0:00:12.3]}
26. fxg4 {[%clk 0:01:16.2]} 26... Rc8 {[%clk 0:00:09]} 27. Nh5 {[%clk
0:01:14.3]} 27... Rxg4+ {[%clk 0:00:08.5]} 28. Kh3 {[%clk 0:01:15.2]} 28... Rgg8
{[%clk 0:00:04.7]} 29. Nf6 {[%clk 0:01:15.5]} 29... Rg7 {[%clk 0:00:04.4]} 30.
Rg3 {[%clk 0:01:15.7]} 30... Rxg3+ {[%clk 0:00:03.9]} 31. Kxg3 {[%clk
0:01:16.6]} 31... Kg7 {[%clk 0:00:03.4]} 32. Nh5+ {[%clk 0:01:16.8]} 32... Kh7
{[%clk 0:00:03.5]} 33. Kh3 {[%clk 0:01:17.7]} 33... Rd8 {[%clk 0:00:03]} 34. Rg1
{[%clk 0:01:17.4]} 34... Rf8 {[%clk 0:00:02.9]} 35. Nf6+ {[%clk 0:01:18]} 35...
Kh8 {[%clk 0:00:03]} 36. h5 {[%clk 0:01:18.3]} 36... Rd8 {[%clk 0:00:02.8]} 37.
Kh4 {[%clk 0:01:19.2]} 37... Rc8 {[%clk 0:00:03]} 38. Rg4 {[%clk 0:01:16.8]}
38... Rd8 {[%clk 0:00:03.2]} 39. d4 {[%clk 0:01:17.2]} 39... c6 {[%clk
0:00:03.4]} 40. dxe5 {[%clk 0:01:17.5]} 40... dxe5 {[%clk 0:00:03.7]} 41. c5
{[%clk 0:01:18.4]} 41... b6 {[%clk 0:00:03.7]} 42. b4 {[%clk 0:01:18.5]} 42...
bxc5 {[%clk 0:00:03.6]} 43. bxc5 {[%clk 0:01:19.4]} 43... a5 {[%clk 0:00:03.4]}
44. a4 {[%clk 0:01:19.6]} 44... Rc8 {[%clk 0:00:03.8]} 45. Nd7 {[%clk
0:01:19.7]} 45... Rd8 {[%clk 0:00:03.8]} 46. Nxe5 {[%clk 0:01:20.2]} 46... Re8
{[%clk 0:00:03.7]} 47. Nxf7+ {[%clk 0:01:19.9]} 47... Kh7 {[%clk 0:00:04]} 48.
Rg6 {[%clk 0:01:20.4]} 48... Rf8 {[%clk 0:00:03.1]} 49. Nxh6 {[%clk 0:01:20.6]}
49... Kh8 {[%clk 0:00:02.8]} 50. Ng4 {[%clk 0:01:21.5]} 50... Kh7 {[%clk
0:00:02.9]} 51. Nf6+ {[%clk 0:01:22.4]} 51... Kh8 {[%clk 0:00:03.2]} 52. h6
{[%clk 0:01:23.3]} 52... Rd8 {[%clk 0:00:02.3]} 53. Kg5 {[%clk 0:01:24.2]} 53...
Rc8 {[%clk 0:00:02.4]} 54. Rg8+ {[%clk 0:01:24.7]} 1-0

[Event "*** SCC Grand Prix: Titled Tuesday Blitz"]
[Site "Chess.com"]
[Date "2020.10.13"]
[Round "8"]
[White "Kapibara_Warri0r"]
[Black "Chessbard1972"]
[Result "0-1"]
[WhiteElo "2078"]
[BlackElo "2339"]
[TimeControl "180+1"]
[EndTime "11:33:03 PDT"]
[Termination "Chessbard1972 won on time"]

1. d4 {[%clk 0:03:00.9]} 1... Nf6 {[%clk 0:02:58.1]} 2. c4 {[%clk 0:03:00.2]}
2... g6 {[%clk 0:02:57.9]} 3. Nc3 {[%clk 0:03:00.7]} 3... Bg7 {[%clk 0:02:58]}
4. e4 {[%clk 0:03:00.4]} 4... d6 {[%clk 0:02:58.1]} 5. f3 {[%clk 0:02:58.9]}
5... O-O {[%clk 0:02:57.6]} 6. Bd3 {[%clk 0:02:58.1]} 6... c5 {[%clk 0:02:57.4]}
7. Nge2 {[%clk 0:02:57.7]} 7... cxd4 {[%clk 0:02:55.3]} 8. Nxd4 {[%clk 0:02:46]}
8... Ng4 {[%clk 0:02:53.9]} 9. Bc2 {[%clk 0:02:41.2]} 9... Ne5 {[%clk
0:02:52.2]} 10. b3 {[%clk 0:02:26.4]} 10... Nbc6 {[%clk 0:02:51.1]} 11. Be3
{[%clk 0:02:24.8]} 11... f5 {[%clk 0:02:35.2]} 12. O-O {[%clk 0:02:18.9]} 12...
f4 {[%clk 0:02:32.8]} 13. Bf2 {[%clk 0:02:18.1]} 13... e6 {[%clk 0:02:24.2]} 14.
Qd2 {[%clk 0:02:11.9]} 14... Qg5 {[%clk 0:02:17.4]} 15. Rad1 {[%clk 0:02:05.8]}
15... Bd7 {[%clk 0:02:07.7]} 16. Kh1 {[%clk 0:02:01.3]} 16... Rad8 {[%clk
0:02:04.7]} 17. Qe1 {[%clk 0:01:49.1]} 17... Bf6 {[%clk 0:01:59.8]} 18. Ncb5
{[%clk 0:01:41]} 18... Bc8 {[%clk 0:01:57.5]} 19. Nc7 {[%clk 0:01:36.2]} 19...
Nxd4 {[%clk 0:01:50]} 20. Bxd4 {[%clk 0:01:37.1]} 20... a6 {[%clk 0:01:46.6]}
21. c5 {[%clk 0:01:19.9]} 21... dxc5 {[%clk 0:01:26.6]} 22. Bxc5 {[%clk
0:01:20.8]} 22... Rf7 {[%clk 0:01:26]} 23. Qa5 {[%clk 0:01:07.1]} 23... Nc6
{[%clk 0:01:20.4]} 24. Qb6 {[%clk 0:01:05.7]} 24... Be5 {[%clk 0:01:11.8]} 25.
Rxd8+ {[%clk 0:00:43.7]} 25... Qxd8 {[%clk 0:01:03.2]} 26. Na8 {[%clk
0:00:42.4]} 26... Qd2 {[%clk 0:00:58]} 27. Bb1 {[%clk 0:00:36.5]} 27... Rd7
{[%clk 0:00:51]} 28. Bg1 {[%clk 0:00:30.4]} 28... Qe2 {[%clk 0:00:38.3]} 29. Rc1
{[%clk 0:00:21.3]} 29... Rd2 {[%clk 0:00:35.7]} 0-1

[Event "*** SCC Grand Prix: Titled Tuesday Blitz"]
[Site "Chess.com"]
[Date "2020.10.13"]
[Round "8"]
[White "mfwagnerpeixoto"]
[Black "guillembaches"]
[Result "1-0"]
[WhiteElo "2269"]
[BlackElo "2390"]
[TimeControl "180+1"]
[EndTime "11:33:04 PDT"]
[Termination "mfwagnerpeixoto won by resignation"]

1. e4 {[%clk 0:02:24.7]} 1... c5 {[%clk 0:02:59.5]} 2. Nf3 {[%clk 0:02:24.1]}
2... d6 {[%clk 0:02:59.8]} 3. d4 {[%clk 0:02:22.2]} 3... cxd4 {[%clk 0:03:00.7]}
4. Nxd4 {[%clk 0:02:22.5]} 4... Nf6 {[%clk 0:03:00.7]} 5. Nc3 {[%clk 0:02:21.9]}
5... Nc6 {[%clk 0:03:00.9]} 6. Bc4 {[%clk 0:02:19.1]} 6... Bd7 {[%clk
0:03:00.6]} 7. Bb3 {[%clk 0:02:18]} 7... g6 {[%clk 0:02:58.7]} 8. O-O {[%clk
0:02:12.2]} 8... Nxd4 {[%clk 0:02:55.9]} 9. Qxd4 {[%clk 0:02:11.5]} 9... Bg7
{[%clk 0:02:56]} 10. Bg5 {[%clk 0:02:09]} 10... O-O {[%clk 0:02:51.8]} 11. Rad1
{[%clk 0:02:08.8]} 11... Bc6 {[%clk 0:02:47.7]} 12. Qd3 {[%clk 0:02:06.2]} 12...
Qa5 {[%clk 0:02:44.3]} 13. Bd2 {[%clk 0:02:03.4]} 13... Qc7 {[%clk 0:02:40.9]}
14. Nd5 {[%clk 0:01:58.8]} 14... Bxd5 {[%clk 0:02:38.9]} 15. exd5 {[%clk
0:01:59.7]} 15... Nd7 {[%clk 0:02:33.4]} 16. c3 {[%clk 0:01:49.3]} 16... Nc5
{[%clk 0:02:29.7]} 17. Qe2 {[%clk 0:01:49.7]} 17... a5 {[%clk 0:02:21.3]} 18.
Bc4 {[%clk 0:01:47.1]} 18... a4 {[%clk 0:02:13.3]} 19. Rfe1 {[%clk 0:01:47]}
19... a3 {[%clk 0:02:12.4]} 20. b3 {[%clk 0:01:41.7]} 20... Bf6 {[%clk
0:02:04.7]} 21. Bh6 {[%clk 0:01:31.6]} 21... Rfc8 {[%clk 0:01:58.5]} 22. Qf3
{[%clk 0:01:27.2]} 22... Qd7 {[%clk 0:01:53.8]} 23. Bf1 {[%clk 0:01:17.2]} 23...
b5 {[%clk 0:01:48.7]} 24. c4 {[%clk 0:01:07.2]} 24... bxc4 {[%clk 0:01:35.4]}
25. Bxc4 {[%clk 0:01:08.1]} 25... Na4 {[%clk 0:01:27.8]} 26. Re3 {[%clk
0:00:56.9]} 26... Nb2 {[%clk 0:01:22.3]} 27. Rde1 {[%clk 0:00:56.1]} 27... Nxc4
{[%clk 0:01:17.8]} 28. bxc4 {[%clk 0:00:56.8]} 28... Rxc4 {[%clk 0:01:16.8]} 29.
Rxa3 {[%clk 0:00:47.8]} 29... Rac8 {[%clk 0:01:11.6]} 30. h3 {[%clk 0:00:41.4]}
30... Qb7 {[%clk 0:00:55.6]} 31. Rae3 {[%clk 0:00:36.4]} 31... Rc3 {[%clk
0:00:51.6]} 32. Qxf6 {[%clk 0:00:33.3]} 32... exf6 {[%clk 0:00:17.4]} 33. Re8+
{[%clk 0:00:31.2]} 1-0

[Event "*** SCC Grand Prix: Titled Tuesday Blitz"]
[Site "Chess.com"]
[Date "2020.10.13"]
[Round "8"]
[White "thedjoker98"]
[Black "Gerodot71"]
[Result "0-1"]
[WhiteElo "2586"]
[BlackElo "2472"]
[TimeControl "180+1"]
[EndTime "11:33:05 PDT"]
[Termination "Gerodot71 won by resignation"]

1. d4 {[%clk 0:03:00.9]} 1... Nf6 {[%clk 0:03:00]} 2. c4 {[%clk 0:02:59.8]} 2...
e6 {[%clk 0:03:00.5]} 3. Nc3 {[%clk 0:02:59.6]} 3... Bb4 {[%clk 0:03:00.7]} 4.
g3 {[%clk 0:03:00.2]} 4... c5 {[%clk 0:02:58.1]} 5. Nf3 {[%clk 0:02:59.7]} 5...
O-O {[%clk 0:02:55.7]} 6. Bg2 {[%clk 0:02:59.7]} 6... Nc6 {[%clk 0:02:50.4]} 7.
O-O {[%clk 0:02:58.2]} 7... cxd4 {[%clk 0:02:45.9]} 8. Nxd4 {[%clk 0:02:59.1]}
8... Qb6 {[%clk 0:02:37.8]} 9. Nxc6 {[%clk 0:02:52.8]} 9... bxc6 {[%clk
0:02:38.7]} 10. Be3 {[%clk 0:02:51]} 10... Qa6 {[%clk 0:02:26.5]} 11. Qb3 {[%clk
0:02:51]} 11... Be7 {[%clk 0:02:23.9]} 12. c5 {[%clk 0:02:42.2]} 12... Nd5
{[%clk 0:02:18.5]} 13. Nxd5 {[%clk 0:02:41.7]} 13... cxd5 {[%clk 0:02:19.4]} 14.
Qc3 {[%clk 0:02:35.9]} 14... Bb7 {[%clk 0:02:15.2]} 15. Bd4 {[%clk 0:02:35.7]}
15... f6 {[%clk 0:02:14.4]} 16. f4 {[%clk 0:02:35.5]} 16... Qxe2 {[%clk
0:02:08.6]} 17. Rf2 {[%clk 0:02:33.9]} 17... Qb5 {[%clk 0:02:06.8]} 18. a4
{[%clk 0:02:31.4]} 18... Qc6 {[%clk 0:02:03.5]} 19. b4 {[%clk 0:02:31.4]} 19...
Rfc8 {[%clk 0:02:02.4]} 20. b5 {[%clk 0:02:29.4]} 20... Qc7 {[%clk 0:02:01.5]}
21. Rc1 {[%clk 0:02:29]} 21... Bf8 {[%clk 0:01:52.1]} 22. g4 {[%clk 0:02:22.7]}
22... Re8 {[%clk 0:01:44.6]} 23. c6 {[%clk 0:02:04.2]} 23... dxc6 {[%clk
0:01:42.8]} 24. bxc6 {[%clk 0:02:05.1]} 24... Bc8 {[%clk 0:01:38.1]} 25. f5
{[%clk 0:01:56.5]} 25... Kh8 {[%clk 0:01:28.5]} 26. fxe6 {[%clk 0:01:55.3]}
26... Bxe6 {[%clk 0:01:29.4]} 27. g5 {[%clk 0:01:52.5]} 27... fxg5 {[%clk
0:01:19.6]} 28. Re1 {[%clk 0:01:43.1]} 28... Bg8 {[%clk 0:01:13.3]} 29. Rxf8
{[%clk 0:01:10.1]} 29... Rxe1+ {[%clk 0:01:06]} 30. Qxe1 {[%clk 0:01:09.9]}
30... Rxf8 {[%clk 0:01:06.9]} 31. Qc3 {[%clk 0:01:08.3]} 31... h6 {[%clk
0:00:56.3]} 32. Bf1 {[%clk 0:01:01]} 32... Bh7 {[%clk 0:00:30.9]} 33. Qc5 {[%clk
0:00:54.2]} 33... Qf4 {[%clk 0:00:26.3]} 34. Bg2 {[%clk 0:00:48.8]} 34... Be4
{[%clk 0:00:21.6]} 35. Qe7 {[%clk 0:00:32.5]} 35... Qc1+ {[%clk 0:00:18.6]} 0-1